{"text_format":"2","workbook":"xlsx","n_sheets":1,"sheets":["PLANILHA de PREÇOS"],"not_rendered":{"charts":0,"images":1,"macros":0,"external_links":0,"defined_names":2,"comments":0,"pivot_tables":0},"unopened":[],"bounds":{"document_bytes":16777216,"sheet_cells":100000,"run_cost":"one","rows_first":2000,"rows_last":500,"rows_between":2000,"halvings":0,"cell_chars":16384,"cell_head_chars":4096},"cells_cut":0,"cells_raw":0,"read":"whole","date_system":"1900"}

{"sheet":"PLANILHA de PREÇOS","index":0,"n_rows":52,"n_cols":10,"rows_kept":52,"cut":false,"hidden":false,"merged":[[1,1,1,9],[4,1,4,9],[51,1,51,8],[3,1,3,9],[2,1,2,9],[6,1,7,1],[6,2,7,2],[6,3,7,3],[6,4,7,4],[6,5,7,5],[6,6,7,6],[6,7,7,7]]}
[]
[null,"\\"]
[null,"Ministério da Integração e do Desenvolvimento Regional"]
[null,"Companhia de desenvolvimento dos Vales do São Francisco e do Parnaíba"]
[]
[]
[null,"ITEM","NOME POPULAR - (Nome científico) ","Variedade/Cultivar","Características Mínimas","CATMAT","Unidade","Quantidade Máxima Anual"]
[{"$nulls":8},"Preço Unitário","Preço Total"]
[null,"1 - PERNAMBUCO","Banana (Musa spp.)","SCS451 Catarina (Prata Anã)","Muda certificada de Banana cultivar SCS451 Catarina (Prata Anã); produzida a partir de propagação in vitro; aclimatizada; diâmetro do pseudocaule com o mínimo de 1cm, medido a 5 cm a partir do coleto da planta; três folhas expandidas, no mínimo; presença de raízes ativas, com cor variando de branca a creme claro; comprimento de, no mínimo, 30cm; acondicionada em recipiente próprio para mudas com, no mínimo, 15cm de diâmetro e 25cm de altura; isenta de pragas e doenças; sem sintomas de estresse hídrico e nutricional; e com identificador unitário.",605604,"Unidade",281917,0,{"$f":"H9*I9","v":0}]
[null,"2 - PERNAMBUCO","Acerola (Malpighia emarginata DC.)","Sertaneja BRS 152","Muda certificada de Acerola cultivar Sertaneja BRS 152; produzida por estaquia; com comprimento, a partir do colo, entre 50 e 70 cm; ter haste única, ereta e perfeita; isenta de pragas e doenças; a idade não deverá ultrapassar 12 meses, a partir da estaquia; sistema radicular bem desenvolvido, sem raízes enoveladas, retorcidas ou quebradas; acondicionada em recipiente próprio para mudas com, no mínimo, 6,5cm de diâmetro e 25cm de altura; sem sintomas de estresse hídrico e nutricional; e com identificador unitário.",611162,"unidade",185291,0,0]
[null,"3 - PERNAMBUCO","Goiaba (Psidium guajava L.)","Paluma com porta-enxerto BRS Guaraçá (Psidium guajava L. x Psidium guineense Sw.)","Muda  certificada de Goiaba cultivar Paluma com porta-enxerto BRS Guaraçá (Psidium guajava L. x Psidium guineense Sw.); com enxerto feito entre 10 e 15cm de altura, medidos a partir do colo da planta; apresentar diâmetro do enxerto o mínimo de 1cm, não apresentando diferença de mais de 0,5cm entre os diâmetros do enxerto e do porta-enxerto, medidos a 5cm do ponto de enxertia; com comprimento, a partir do colo, entre 40 e 50 cm; ter haste única, ereta e perfeita; isenta de pragas e doenças; a idade não deverá ultrapassar 12 meses, contados a partir da semeadura do porta-enxerto; sistema radicular bem desenvolvido, sem raízes enoveladas, retorcidas ou quebradas; acondicionada em recipiente próprio para mudas com dimensões mínimas de 15cm de diâmetro e 25cm de altura; substrato não deverá conter solo; sem sintomas de estresse hídrico e nutricional; deverá ser comprovadamente isenta de nematóides do gênero Meloidogyne, mediante análise laboratorial; e com identificador unitário.",605600,"unidade",63395,0,0]
[null,"4 - PERNAMBUCO","Manga (Mangifera indica L.)","Palmer com porta-enxerto IAC 101 Coquinho","Muda  certificada de Manga cultivar Palmer com porta-enxerto IAC 101 Coquinho; com enxerto feito, no mínimo a 15cm de altura, medidos a partir do colo da planta;  não apresentar diferença de mais de 1cm entre os diâmetros do enxerto e do porta-enxerto, medidos a 5cm do ponto de enxertia; com comprimento, a partir do colo, entre 50 e 70 cm; ter haste única, ereta e perfeita; isenta de pragas e doenças; a idade não deverá ultrapassar 18 meses, contados a partir da semeadura do porta-enxerto; sistema radicular bem desenvolvido, sem raízes enoveladas, retorcidas ou quebradas; acondicionada em recipiente próprio para mudas com dimensões mínimas de 15cm de diâmetro e 30cm de altura; sem sintomas de estresse hídrico e nutricional; e com identificador unitário.",605604,"unidade",7739,0,0]
[null,"5 - PERNAMBUCO","Manga (Mangifera indica L.)","Tommy Atkins com porta-enxerto IAC 101 Coquinho","Muda  certificada de Manga cultivar Tommy Atkins com porta-enxerto IAC 101 Coquinho; com enxerto feito, no mínimo a 15cm de altura, medidos a partir do colo da planta;  não apresentar diferença de mais de 1cm entre os diâmetros do enxerto e do porta-enxerto, medidos a 5cm do ponto de enxertia; com comprimento, a partir do colo, entre 50 e 70 cm; ter haste única, ereta e perfeita; isenta de pragas e doenças; a idade não deverá ultrapassar 18 meses, contados a partir da semeadura do porta-enxerto; sistema radicular bem desenvolvido, sem raízes enoveladas, retorcidas ou quebradas; acondicionada em recipiente próprio para mudas com dimensões mínimas de 15cm de diâmetro e 30cm de altura; sem sintomas de estresse hídrico e nutricional; e com identificador unitário.",605604,"unidade",7739,0,0]
[null,"6 - PERNAMBUCO","Lima ácida Tahiti (Citrus latifolia (Yu. Tanaka) Tanaka)","CPMF 01 ou CPMF 02 (Tahiti), com porta-enxerto Citrandarin ‘San Diego’ ou Citrandarin‘Riverside’","Muda certificada de Lima cultivar CPMF 01 ou CPMF 02 (Tahiti), com porta-enxerto Citrandarin ‘San Diego’ ou Citrandarin‘Riverside’; com enxerto feito entre 10 e 20cm de altura, medidos a partir do colo do porta-enxerto; o enxerto e o porta-enxerto deverão constituir haste única e ereta, tolerando-se uma pequena curvatura logo acima do ponto de enxertia de, no máximo, 15º, e apresentar diferença menor ou igual a 0,5cm entre seus diâmetros, medidos a 5cm acima e abaixo do ponto de enxertia; tecido amadurecido; ramos íntegros, sem danos físicos; com comprimento, a partir do colo, entre 50 e 60 cm;  diâmetro mínimo de 0,5 cm, 5 cm acima do ponto de enxertia; corte do porta-enxerto cicatrizado; estar isenta de pragas e doenças; a idade não deverá ultrapassar 24 meses, contados a partir da semeadura do porta-enxerto; sistema radicular bem desenvolvido, com raiz principal maior que 20cm, radicelas ocupando todo ou quase todo o volume do substrato, sem raízes enoveladas, retorcidas ou quebradas; acondicionada em recipiente próprio para mudas com dimensões mínimas de 10cm de diâmetro e 30cm de altura; substrato não deverá conter solo; sem sintomas de estresse hídrico e nutricional; e com identificador unitário.",611171,"unidade",74146,0,0]
[null,"7 - PERNAMBUCO","Abacaxi (Ananas comosus L.)","Pérola","Muda certificada de abacaxi, cultivar Pérola; produzida a partir de propagação in vitro ou secção do caule. Se, oriunda de propagação in vitro: deverá ser submetida à aclimatização; ter, na ocasião da comercialização, no mínimo 25cm de comprimento e 100g de peso; o material de propagação utilizado na propagação in vitro deverá ser retirado de gema apical ou lateral; e o número de subcultivos não poderá ser superior a 5. Se, oriunda de secção do caule, na ocasião da comercialização, deverão apresentar comprimento mínimo de 25cm; peso mínimo de 150g; idade máxima de 12  meses, contada a partir do plantio das secções do caule; e raízes eliminadas. Não deve apresentar sintomas de estresse hídrico e nutricional; isentas de pragas e doenças; e com identificador unitário.",627902,"unidade",247722,0,0]
[null,"8 - PERNAMBUCO","Laranja  (Citrus sinensis (L.) Osbeck)","Pera IAC com porta-enxerto limoeiro ‘Cravo’ (Citrus limonia Osbeck)","Muda certificada de Laranja cultivar Pera IAC com porta-enxerto limoeiro ‘Cravo’ (Citrus limonia Osbeck); com enxerto feito entre 10 e 20cm de altura, medidos a partir do colo do porta-enxerto; o enxerto e o porta-enxerto deverão constituir haste única e ereta, tolerando-se uma pequena curvatura logo acima do ponto de enxertia de, no máximo, 15º, e apresentar diferença menor ou igual a 0,5cm entre seus diâmetros, medidos a 5cm acima e abaixo do ponto de enxertia; tecido amadurecido; ramos íntegros, sem danos físicos; com comprimento, a partir do colo, entre 50 e 60 cm;  diâmetro mínimo de 0,5 cm, 5 cm acima do ponto de enxertia; corte do porta-enxerto cicatrizado; estar isenta de pragas e doenças; a idade não deverá ultrapassar 18 meses, contados a partir da semeadura do porta-enxerto; sistema radicular bem desenvolvido, com raiz principal maior que 20cm, radicelas ocupando todo ou quase todo o volume do substrato, sem raízes enoveladas, retorcidas ou quebradas; acondicionada em recipiente próprio para mudas com dimensões mínimas de 10cm de diâmetro e 30cm de altura; substrato não deverá conter solo; sem sintomas de estresse hídrico e nutricional; e com identificador unitário.",611158,"unidade",74416,0,0]
[null,"9 - PERNANBUCO","Açaí (Euterpe oleracea Mart.)","BRS Pai Dégua","Muda certificada de Açaí cultivar BRS Pai Dégua; apresentando 5 folhas completamente expandidas; com altura total entre 50cm e 75cm, medidos da superfície do substrato à ponta da 5ª folha; apresentar diâmetro do caule superior a 14mm, medidos a 1cm da superfície do substrato; a idade não deverá ultrapassar 18 meses, a partir da repicagem da semente pré-germinada; sistema radicular bem desenvolvido, sem raízes enoveladas, retorcidas ou quebradas; acondicionada em recipiente próprio para mudas com, no mínimo, 11cm de diâmetro e 25cm de altura; isenta de pragas e doenças; sem sintomas de estresse hídrico e nutricional; e com identificador unitário.",627901,"unidade",33167,0,0]
[null,"10 - PERNAMBUCO","Maracujá (Passiflora foetida L.)","UFERSA BRSRM 153","Muda certificada de Maracujá cultivar UFERSA BRSRM 153; oriunda da semeadura de sementes; com altura total entre 15cm e 30cm, medidos a partir do colo; a idade não deverá ultrapassar 70 dias, a partir da semeadura; sistema radicular bem desenvolvido, sem raízes enoveladas, retorcidas ou quebradas; acondicionada em recipiente próprio para mudas com, no mínimo, 10cm de diâmetro e 20cm de altura; substrato não deverá conter solo; isenta de pragas e doenças; sem sintomas de estresse hídrico e nutricional; e com identificador unitário.",627896,"unidade",33167,0,0]
[null,"11 - DISTRITO FEDERAL","Banana (Musa spp.)","SCS451 Catarina (Prata Anã)","Muda certificada de Banana cultivar SCS451 Catarina (Prata Anã); produzida a partir de propagação in vitro; aclimatizada; diâmetro do pseudocaule com o mínimo de 1cm, medido a 5 cm a partir do coleto da planta; três folhas expandidas, no mínimo; presença de raízes ativas, com cor variando de branca a creme claro; comprimento de, no mínimo, 30cm; acondicionada em recipiente próprio para mudas com, no mínimo, 15cm de diâmetro e 25cm de altura; isenta de pragas e doenças; sem sintomas de estresse hídrico e nutricional; e com identificador unitário.",605604,"Unidade",281917,0,0]
[null,"12 - DISTRITO FEDERAL","Acerola (Malpighia emarginata DC.)","Sertaneja BRS 152","Muda certificada de Acerola cultivar Sertaneja BRS 152; produzida por estaquia; com comprimento, a partir do colo, entre 50 e 70 cm; ter haste única, ereta e perfeita; isenta de pragas e doenças; a idade não deverá ultrapassar 12 meses, a partir da estaquia; sistema radicular bem desenvolvido, sem raízes enoveladas, retorcidas ou quebradas; acondicionada em recipiente próprio para mudas com, no mínimo, 6,5cm de diâmetro e 25cm de altura; sem sintomas de estresse hídrico e nutricional; e com identificador unitário.",611162,"unidade",185291,0,0]
[null,"13 - DISTRITO FEDERAL","Goiaba (Psidium guajava L.)","Paluma com porta-enxerto BRS Guaraçá (Psidium guajava L. x Psidium guineense Sw.)","Muda  certificada de Goiaba cultivar Paluma com porta-enxerto BRS Guaraçá (Psidium guajava L. x Psidium guineense Sw.); com enxerto feito entre 10 e 15cm de altura, medidos a partir do colo da planta; apresentar diâmetro do enxerto o mínimo de 1cm, não apresentando diferença de mais de 0,5cm entre os diâmetros do enxerto e do porta-enxerto, medidos a 5cm do ponto de enxertia; com comprimento, a partir do colo, entre 40 e 50 cm; ter haste única, ereta e perfeita; isenta de pragas e doenças; a idade não deverá ultrapassar 12 meses, contados a partir da semeadura do porta-enxerto; sistema radicular bem desenvolvido, sem raízes enoveladas, retorcidas ou quebradas; acondicionada em recipiente próprio para mudas com dimensões mínimas de 15cm de diâmetro e 25cm de altura; substrato não deverá conter solo; sem sintomas de estresse hídrico e nutricional; deverá ser comprovadamente isenta de nematóides do gênero Meloidogyne, mediante análise laboratorial; e com identificador unitário.",605600,"unidade",63395,0,0]
[null,"14 - DISTRITO FEDERAL","Manga (Mangifera indica L.)","Palmer com porta-enxerto IAC 101 Coquinho","Muda  certificada de Manga cultivar Palmer com porta-enxerto IAC 101 Coquinho; com enxerto feito, no mínimo a 15cm de altura, medidos a partir do colo da planta;  não apresentar diferença de mais de 1cm entre os diâmetros do enxerto e do porta-enxerto, medidos a 5cm do ponto de enxertia; com comprimento, a partir do colo, entre 50 e 70 cm; ter haste única, ereta e perfeita; isenta de pragas e doenças; a idade não deverá ultrapassar 18 meses, contados a partir da semeadura do porta-enxerto; sistema radicular bem desenvolvido, sem raízes enoveladas, retorcidas ou quebradas; acondicionada em recipiente próprio para mudas com dimensões mínimas de 15cm de diâmetro e 30cm de altura; sem sintomas de estresse hídrico e nutricional; e com identificador unitário.",605604,"unidade",{"$f":"7739*2","v":15478},0,0]
[null,"15 - DISTRITO FEDERAL","Lima ácida Tahiti (Citrus latifolia (Yu. Tanaka) Tanaka)","CPMF 01 ou CPMF 02 (Tahiti), com porta-enxerto Citrandarin ‘San Diego’ ou Citrandarin‘Riverside’","Muda certificada de Lima cultivar CPMF 01 ou CPMF 02 (Tahiti), com porta-enxerto Citrandarin ‘San Diego’ ou Citrandarin‘Riverside’; com enxerto feito entre 10 e 20cm de altura, medidos a partir do colo do porta-enxerto; o enxerto e o porta-enxerto deverão constituir haste única e ereta, tolerando-se uma pequena curvatura logo acima do ponto de enxertia de, no máximo, 15º, e apresentar diferença menor ou igual a 0,5cm entre seus diâmetros, medidos a 5cm acima e abaixo do ponto de enxertia; tecido amadurecido; ramos íntegros, sem danos físicos; com comprimento, a partir do colo, entre 50 e 60 cm;  diâmetro mínimo de 0,5 cm, 5 cm acima do ponto de enxertia; corte do porta-enxerto cicatrizado; estar isenta de pragas e doenças; a idade não deverá ultrapassar 24 meses, contados a partir da semeadura do porta-enxerto; sistema radicular bem desenvolvido, com raiz principal maior que 20cm, radicelas ocupando todo ou quase todo o volume do substrato, sem raízes enoveladas, retorcidas ou quebradas; acondicionada em recipiente próprio para mudas com dimensões mínimas de 10cm de diâmetro e 30cm de altura; substrato não deverá conter solo; sem sintomas de estresse hídrico e nutricional; e com identificador unitário.",611171,"unidade",74146,0,0]
[null,"16 - DISTRITO FEDERAL","Abacaxi (Ananas comosus L.)","Pérola","Muda certificada de abacaxi, cultivar Pérola; produzida a partir de propagação in vitro ou secção do caule. Se, oriunda de propagação in vitro: deverá ser submetida à aclimatização; ter, na ocasião da comercialização, no mínimo 25cm de comprimento e 100g de peso; o material de propagação utilizado na propagação in vitro deverá ser retirado de gema apical ou lateral; e o número de subcultivos não poderá ser superior a 5. Se, oriunda de secção do caule, na ocasião da comercialização, deverão apresentar comprimento mínimo de 25cm; peso mínimo de 150g; idade máxima de 12  meses, contada a partir do plantio das secções do caule; e raízes eliminadas. Não deve apresentar sintomas de estresse hídrico e nutricional; isentas de pragas e doenças; e com identificador unitário.",627902,"unidade",247722,0,0]
[null,"17 - DISTRITO FEDERAL","Laranja  (Citrus sinensis (L.) Osbeck)","Pera IAC com porta-enxerto limoeiro ‘Cravo’ (Citrus limonia Osbeck)","Muda certificada de Laranja cultivar Pera IAC com porta-enxerto limoeiro ‘Cravo’ (Citrus limonia Osbeck); com enxerto feito entre 10 e 20cm de altura, medidos a partir do colo do porta-enxerto; o enxerto e o porta-enxerto deverão constituir haste única e ereta, tolerando-se uma pequena curvatura logo acima do ponto de enxertia de, no máximo, 15º, e apresentar diferença menor ou igual a 0,5cm entre seus diâmetros, medidos a 5cm acima e abaixo do ponto de enxertia; tecido amadurecido; ramos íntegros, sem danos físicos; com comprimento, a partir do colo, entre 50 e 60 cm;  diâmetro mínimo de 0,5 cm, 5 cm acima do ponto de enxertia; corte do porta-enxerto cicatrizado; estar isenta de pragas e doenças; a idade não deverá ultrapassar 18 meses, contados a partir da semeadura do porta-enxerto; sistema radicular bem desenvolvido, com raiz principal maior que 20cm, radicelas ocupando todo ou quase todo o volume do substrato, sem raízes enoveladas, retorcidas ou quebradas; acondicionada em recipiente próprio para mudas com dimensões mínimas de 10cm de diâmetro e 30cm de altura; substrato não deverá conter solo; sem sintomas de estresse hídrico e nutricional; e com identificador unitário.",611158,"unidade",74416,0,0]
[null,"18 - DISTRITO FEDERAL","Açaí (Euterpe oleracea Mart.)","BRS Pai Dégua","Muda certificada de Açaí cultivar BRS Pai Dégua; apresentando 5 folhas completamente expandidas; com altura total entre 50cm e 75cm, medidos da superfície do substrato à ponta da 5ª folha; apresentar diâmetro do caule superior a 14mm, medidos a 1cm da superfície do substrato; a idade não deverá ultrapassar 18 meses, a partir da repicagem da semente pré-germinada; sistema radicular bem desenvolvido, sem raízes enoveladas, retorcidas ou quebradas; acondicionada em recipiente próprio para mudas com, no mínimo, 11cm de diâmetro e 25cm de altura; isenta de pragas e doenças; sem sintomas de estresse hídrico e nutricional; e com identificador unitário.",627901,"unidade",33167,0,0]
[null,"19 - DISTRITO FEDERAL","Maracujá (Passiflora foetida L.)","UFERSA BRSRM 153","Muda certificada de Maracujá cultivar UFERSA BRSRM 153; oriunda da semeadura de sementes; com altura total entre 15cm e 30cm, medidos a partir do colo; a idade não deverá ultrapassar 70 dias, a partir da semeadura; sistema radicular bem desenvolvido, sem raízes enoveladas, retorcidas ou quebradas; acondicionada em recipiente próprio para mudas com, no mínimo, 10cm de diâmetro e 20cm de altura; substrato não deverá conter solo; isenta de pragas e doenças; sem sintomas de estresse hídrico e nutricional; e com identificador unitário.",627896,"unidade",33167,0,0]
[null,"20 -MATO GROSSO","Banana (Musa spp.)","SCS451 Catarina (Prata Anã)","Muda certificada de Banana cultivar SCS451 Catarina (Prata Anã); produzida a partir de propagação in vitro; aclimatizada; diâmetro do pseudocaule com o mínimo de 1cm, medido a 5 cm a partir do coleto da planta; três folhas expandidas, no mínimo; presença de raízes ativas, com cor variando de branca a creme claro; comprimento de, no mínimo, 30cm; acondicionada em recipiente próprio para mudas com, no mínimo, 15cm de diâmetro e 25cm de altura; isenta de pragas e doenças; sem sintomas de estresse hídrico e nutricional; e com identificador unitário.",605604,"Unidade",281917,0,0]
[null,"21 - MATO GROSSO","Acerola (Malpighia emarginata DC.)","Sertaneja BRS 152","Muda certificada de Acerola cultivar Sertaneja BRS 152; produzida por estaquia; com comprimento, a partir do colo, entre 50 e 70 cm; ter haste única, ereta e perfeita; isenta de pragas e doenças; a idade não deverá ultrapassar 12 meses, a partir da estaquia; sistema radicular bem desenvolvido, sem raízes enoveladas, retorcidas ou quebradas; acondicionada em recipiente próprio para mudas com, no mínimo, 6,5cm de diâmetro e 25cm de altura; sem sintomas de estresse hídrico e nutricional; e com identificador unitário.",611162,"unidade",185291,0,0]
[null,"22 - MATO GROSSO","Goiaba (Psidium guajava L.)","Paluma com porta-enxerto BRS Guaraçá (Psidium guajava L. x Psidium guineense Sw.)","Muda  certificada de Goiaba cultivar Paluma com porta-enxerto BRS Guaraçá (Psidium guajava L. x Psidium guineense Sw.); com enxerto feito entre 10 e 15cm de altura, medidos a partir do colo da planta; apresentar diâmetro do enxerto o mínimo de 1cm, não apresentando diferença de mais de 0,5cm entre os diâmetros do enxerto e do porta-enxerto, medidos a 5cm do ponto de enxertia; com comprimento, a partir do colo, entre 40 e 50 cm; ter haste única, ereta e perfeita; isenta de pragas e doenças; a idade não deverá ultrapassar 12 meses, contados a partir da semeadura do porta-enxerto; sistema radicular bem desenvolvido, sem raízes enoveladas, retorcidas ou quebradas; acondicionada em recipiente próprio para mudas com dimensões mínimas de 15cm de diâmetro e 25cm de altura; substrato não deverá conter solo; sem sintomas de estresse hídrico e nutricional; deverá ser comprovadamente isenta de nematóides do gênero Meloidogyne, mediante análise laboratorial; e com identificador unitário.",605600,"unidade",63395,0,0]
[null,"23 - MATO GROSSO","Manga (Mangifera indica L.)","Palmer com porta-enxerto IAC 101 Coquinho","Muda  certificada de Manga cultivar Palmer com porta-enxerto IAC 101 Coquinho; com enxerto feito, no mínimo a 15cm de altura, medidos a partir do colo da planta;  não apresentar diferença de mais de 1cm entre os diâmetros do enxerto e do porta-enxerto, medidos a 5cm do ponto de enxertia; com comprimento, a partir do colo, entre 50 e 70 cm; ter haste única, ereta e perfeita; isenta de pragas e doenças; a idade não deverá ultrapassar 18 meses, contados a partir da semeadura do porta-enxerto; sistema radicular bem desenvolvido, sem raízes enoveladas, retorcidas ou quebradas; acondicionada em recipiente próprio para mudas com dimensões mínimas de 15cm de diâmetro e 30cm de altura; sem sintomas de estresse hídrico e nutricional; e com identificador unitário.",605604,"unidade",{"$f":"7739+39149","v":46888},0,0]
[null,"24 - MATO GROSSO","Lima ácida Tahiti (Citrus latifolia (Yu. Tanaka) Tanaka)","CPMF 01 ou CPMF 02 (Tahiti), com porta-enxerto Citrandarin ‘San Diego’ ou Citrandarin‘Riverside’","Muda certificada de Lima cultivar CPMF 01 ou CPMF 02 (Tahiti), com porta-enxerto Citrandarin ‘San Diego’ ou Citrandarin‘Riverside’; com enxerto feito entre 10 e 20cm de altura, medidos a partir do colo do porta-enxerto; o enxerto e o porta-enxerto deverão constituir haste única e ereta, tolerando-se uma pequena curvatura logo acima do ponto de enxertia de, no máximo, 15º, e apresentar diferença menor ou igual a 0,5cm entre seus diâmetros, medidos a 5cm acima e abaixo do ponto de enxertia; tecido amadurecido; ramos íntegros, sem danos físicos; com comprimento, a partir do colo, entre 50 e 60 cm;  diâmetro mínimo de 0,5 cm, 5 cm acima do ponto de enxertia; corte do porta-enxerto cicatrizado; estar isenta de pragas e doenças; a idade não deverá ultrapassar 24 meses, contados a partir da semeadura do porta-enxerto; sistema radicular bem desenvolvido, com raiz principal maior que 20cm, radicelas ocupando todo ou quase todo o volume do substrato, sem raízes enoveladas, retorcidas ou quebradas; acondicionada em recipiente próprio para mudas com dimensões mínimas de 10cm de diâmetro e 30cm de altura; substrato não deverá conter solo; sem sintomas de estresse hídrico e nutricional; e com identificador unitário.",611171,"unidade",74146,0,0]
[null,"25 - MATO GROSSO","Abacaxi (Ananas comosus L.)","Pérola","Muda certificada de abacaxi, cultivar Pérola; produzida a partir de propagação in vitro ou secção do caule. Se, oriunda de propagação in vitro: deverá ser submetida à aclimatização; ter, na ocasião da comercialização, no mínimo 25cm de comprimento e 100g de peso; o material de propagação utilizado na propagação in vitro deverá ser retirado de gema apical ou lateral; e o número de subcultivos não poderá ser superior a 5. Se, oriunda de secção do caule, na ocasião da comercialização, deverão apresentar comprimento mínimo de 25cm; peso mínimo de 150g; idade máxima de 12  meses, contada a partir do plantio das secções do caule; e raízes eliminadas. Não deve apresentar sintomas de estresse hídrico e nutricional; isentas de pragas e doenças; e com identificador unitário.",627902,"unidade",247722,0,0]
[null,"26 - MATO GROSSO","Laranja  (Citrus sinensis (L.) Osbeck)","Pera IAC com porta-enxerto limoeiro ‘Cravo’ (Citrus limonia Osbeck)","Muda certificada de Laranja cultivar Pera IAC com porta-enxerto limoeiro ‘Cravo’ (Citrus limonia Osbeck); com enxerto feito entre 10 e 20cm de altura, medidos a partir do colo do porta-enxerto; o enxerto e o porta-enxerto deverão constituir haste única e ereta, tolerando-se uma pequena curvatura logo acima do ponto de enxertia de, no máximo, 15º, e apresentar diferença menor ou igual a 0,5cm entre seus diâmetros, medidos a 5cm acima e abaixo do ponto de enxertia; tecido amadurecido; ramos íntegros, sem danos físicos; com comprimento, a partir do colo, entre 50 e 60 cm;  diâmetro mínimo de 0,5 cm, 5 cm acima do ponto de enxertia; corte do porta-enxerto cicatrizado; estar isenta de pragas e doenças; a idade não deverá ultrapassar 18 meses, contados a partir da semeadura do porta-enxerto; sistema radicular bem desenvolvido, com raiz principal maior que 20cm, radicelas ocupando todo ou quase todo o volume do substrato, sem raízes enoveladas, retorcidas ou quebradas; acondicionada em recipiente próprio para mudas com dimensões mínimas de 10cm de diâmetro e 30cm de altura; substrato não deverá conter solo; sem sintomas de estresse hídrico e nutricional; e com identificador unitário.",611158,"unidade",74416,0,0]
[null,"27 - MATO GROSSO","Açaí (Euterpe oleracea Mart.)","BRS Pai Dégua","Muda certificada de Açaí cultivar BRS Pai Dégua; apresentando 5 folhas completamente expandidas; com altura total entre 50cm e 75cm, medidos da superfície do substrato à ponta da 5ª folha; apresentar diâmetro do caule superior a 14mm, medidos a 1cm da superfície do substrato; a idade não deverá ultrapassar 18 meses, a partir da repicagem da semente pré-germinada; sistema radicular bem desenvolvido, sem raízes enoveladas, retorcidas ou quebradas; acondicionada em recipiente próprio para mudas com, no mínimo, 11cm de diâmetro e 25cm de altura; isenta de pragas e doenças; sem sintomas de estresse hídrico e nutricional; e com identificador unitário.",627901,"unidade",33167,0,0]
[null,"28 - MATO GROSSO","Maracujá (Passiflora foetida L.)","UFERSA BRSRM 153","Muda certificada de Maracujá cultivar UFERSA BRSRM 153; oriunda da semeadura de sementes; com altura total entre 15cm e 30cm, medidos a partir do colo; a idade não deverá ultrapassar 70 dias, a partir da semeadura; sistema radicular bem desenvolvido, sem raízes enoveladas, retorcidas ou quebradas; acondicionada em recipiente próprio para mudas com, no mínimo, 10cm de diâmetro e 20cm de altura; substrato não deverá conter solo; isenta de pragas e doenças; sem sintomas de estresse hídrico e nutricional; e com identificador unitário.",627896,"unidade",33167,0,0]
[null,"29- ALAGOAS","Banana (Musa spp.)","SCS451 Catarina (Prata Anã)","Muda certificada de Banana cultivar SCS451 Catarina (Prata Anã); produzida a partir de propagação in vitro; aclimatizada; diâmetro do pseudocaule com o mínimo de 1cm, medido a 5 cm a partir do coleto da planta; três folhas expandidas, no mínimo; presença de raízes ativas, com cor variando de branca a creme claro; comprimento de, no mínimo, 30cm; acondicionada em recipiente próprio para mudas com, no mínimo, 15cm de diâmetro e 25cm de altura; isenta de pragas e doenças; sem sintomas de estresse hídrico e nutricional; e com identificador unitário.",605604,"Unidade",281917,0,0]
[null,"30- ALAGOAS","Acerola (Malpighia emarginata DC.)","Sertaneja BRS 152","Muda certificada de Acerola cultivar Sertaneja BRS 152; produzida por estaquia; com comprimento, a partir do colo, entre 50 e 70 cm; ter haste única, ereta e perfeita; isenta de pragas e doenças; a idade não deverá ultrapassar 12 meses, a partir da estaquia; sistema radicular bem desenvolvido, sem raízes enoveladas, retorcidas ou quebradas; acondicionada em recipiente próprio para mudas com, no mínimo, 6,5cm de diâmetro e 25cm de altura; sem sintomas de estresse hídrico e nutricional; e com identificador unitário.",611162,"unidade",185291,0,0]
[null,"31- ALAGOAS","Goiaba (Psidium guajava L.)","Paluma com porta-enxerto BRS Guaraçá (Psidium guajava L. x Psidium guineense Sw.)","Muda  certificada de Goiaba cultivar Paluma com porta-enxerto BRS Guaraçá (Psidium guajava L. x Psidium guineense Sw.); com enxerto feito entre 10 e 15cm de altura, medidos a partir do colo da planta; apresentar diâmetro do enxerto o mínimo de 1cm, não apresentando diferença de mais de 0,5cm entre os diâmetros do enxerto e do porta-enxerto, medidos a 5cm do ponto de enxertia; com comprimento, a partir do colo, entre 40 e 50 cm; ter haste única, ereta e perfeita; isenta de pragas e doenças; a idade não deverá ultrapassar 12 meses, contados a partir da semeadura do porta-enxerto; sistema radicular bem desenvolvido, sem raízes enoveladas, retorcidas ou quebradas; acondicionada em recipiente próprio para mudas com dimensões mínimas de 15cm de diâmetro e 25cm de altura; substrato não deverá conter solo; sem sintomas de estresse hídrico e nutricional; deverá ser comprovadamente isenta de nematóides do gênero Meloidogyne, mediante análise laboratorial; e com identificador unitário.",605600,"unidade",63395,0,0]
[null,"32- ALAGOAS","Manga (Mangifera indica L.)","Palmer com porta-enxerto IAC 101 Coquinho","Muda  certificada de Manga cultivar Palmer com porta-enxerto IAC 101 Coquinho; com enxerto feito, no mínimo a 15cm de altura, medidos a partir do colo da planta;  não apresentar diferença de mais de 1cm entre os diâmetros do enxerto e do porta-enxerto, medidos a 5cm do ponto de enxertia; com comprimento, a partir do colo, entre 50 e 70 cm; ter haste única, ereta e perfeita; isenta de pragas e doenças; a idade não deverá ultrapassar 18 meses, contados a partir da semeadura do porta-enxerto; sistema radicular bem desenvolvido, sem raízes enoveladas, retorcidas ou quebradas; acondicionada em recipiente próprio para mudas com dimensões mínimas de 15cm de diâmetro e 30cm de altura; sem sintomas de estresse hídrico e nutricional; e com identificador unitário.",605604,"unidade",{"$f":"7739*2","v":15478},0,0]
[null,"33 - ALAGOAS","Lima ácida Tahiti (Citrus latifolia (Yu. Tanaka) Tanaka)","CPMF 01 ou CPMF 02 (Tahiti), com porta-enxerto Citrandarin ‘San Diego’ ou Citrandarin‘Riverside’","Muda certificada de Lima cultivar CPMF 01 ou CPMF 02 (Tahiti), com porta-enxerto Citrandarin ‘San Diego’ ou Citrandarin‘Riverside’; com enxerto feito entre 10 e 20cm de altura, medidos a partir do colo do porta-enxerto; o enxerto e o porta-enxerto deverão constituir haste única e ereta, tolerando-se uma pequena curvatura logo acima do ponto de enxertia de, no máximo, 15º, e apresentar diferença menor ou igual a 0,5cm entre seus diâmetros, medidos a 5cm acima e abaixo do ponto de enxertia; tecido amadurecido; ramos íntegros, sem danos físicos; com comprimento, a partir do colo, entre 50 e 60 cm;  diâmetro mínimo de 0,5 cm, 5 cm acima do ponto de enxertia; corte do porta-enxerto cicatrizado; estar isenta de pragas e doenças; a idade não deverá ultrapassar 24 meses, contados a partir da semeadura do porta-enxerto; sistema radicular bem desenvolvido, com raiz principal maior que 20cm, radicelas ocupando todo ou quase todo o volume do substrato, sem raízes enoveladas, retorcidas ou quebradas; acondicionada em recipiente próprio para mudas com dimensões mínimas de 10cm de diâmetro e 30cm de altura; substrato não deverá conter solo; sem sintomas de estresse hídrico e nutricional; e com identificador unitário.",611171,"unidade",74146,0,0]
[null,"34- ALAGOAS","Abacaxi (Ananas comosus L.)","Pérola","Muda certificada de abacaxi, cultivar Pérola; produzida a partir de propagação in vitro ou secção do caule. Se, oriunda de propagação in vitro: deverá ser submetida à aclimatização; ter, na ocasião da comercialização, no mínimo 25cm de comprimento e 100g de peso; o material de propagação utilizado na propagação in vitro deverá ser retirado de gema apical ou lateral; e o número de subcultivos não poderá ser superior a 5. Se, oriunda de secção do caule, na ocasião da comercialização, deverão apresentar comprimento mínimo de 25cm; peso mínimo de 150g; idade máxima de 12  meses, contada a partir do plantio das secções do caule; e raízes eliminadas. Não deve apresentar sintomas de estresse hídrico e nutricional; isentas de pragas e doenças; e com identificador unitário.",627902,"unidade",247722,0,0]
[null,"35- ALAGOAS","Laranja  (Citrus sinensis (L.) Osbeck)","Pera IAC com porta-enxerto limoeiro ‘Cravo’ (Citrus limonia Osbeck)","Muda certificada de Laranja cultivar Pera IAC com porta-enxerto limoeiro ‘Cravo’ (Citrus limonia Osbeck); com enxerto feito entre 10 e 20cm de altura, medidos a partir do colo do porta-enxerto; o enxerto e o porta-enxerto deverão constituir haste única e ereta, tolerando-se uma pequena curvatura logo acima do ponto de enxertia de, no máximo, 15º, e apresentar diferença menor ou igual a 0,5cm entre seus diâmetros, medidos a 5cm acima e abaixo do ponto de enxertia; tecido amadurecido; ramos íntegros, sem danos físicos; com comprimento, a partir do colo, entre 50 e 60 cm;  diâmetro mínimo de 0,5 cm, 5 cm acima do ponto de enxertia; corte do porta-enxerto cicatrizado; estar isenta de pragas e doenças; a idade não deverá ultrapassar 18 meses, contados a partir da semeadura do porta-enxerto; sistema radicular bem desenvolvido, com raiz principal maior que 20cm, radicelas ocupando todo ou quase todo o volume do substrato, sem raízes enoveladas, retorcidas ou quebradas; acondicionada em recipiente próprio para mudas com dimensões mínimas de 10cm de diâmetro e 30cm de altura; substrato não deverá conter solo; sem sintomas de estresse hídrico e nutricional; e com identificador unitário.",611158,"unidade",74416,0,0]
[null,"36- ALAGOAS","Açaí (Euterpe oleracea Mart.)","BRS Pai Dégua","Muda certificada de Açaí cultivar BRS Pai Dégua; apresentando 5 folhas completamente expandidas; com altura total entre 50cm e 75cm, medidos da superfície do substrato à ponta da 5ª folha; apresentar diâmetro do caule superior a 14mm, medidos a 1cm da superfície do substrato; a idade não deverá ultrapassar 18 meses, a partir da repicagem da semente pré-germinada; sistema radicular bem desenvolvido, sem raízes enoveladas, retorcidas ou quebradas; acondicionada em recipiente próprio para mudas com, no mínimo, 11cm de diâmetro e 25cm de altura; isenta de pragas e doenças; sem sintomas de estresse hídrico e nutricional; e com identificador unitário.",627901,"unidade",33167,0,0]
[null,"37- ALAGOAS","Maracujá (Passiflora foetida L.)","UFERSA BRSRM 153","Muda certificada de Maracujá cultivar UFERSA BRSRM 153; oriunda da semeadura de sementes; com altura total entre 15cm e 30cm, medidos a partir do colo; a idade não deverá ultrapassar 70 dias, a partir da semeadura; sistema radicular bem desenvolvido, sem raízes enoveladas, retorcidas ou quebradas; acondicionada em recipiente próprio para mudas com, no mínimo, 10cm de diâmetro e 20cm de altura; substrato não deverá conter solo; isenta de pragas e doenças; sem sintomas de estresse hídrico e nutricional; e com identificador unitário.",627896,"unidade",33167,0,0]
[null,"38- ALAGOAS","Manga (Mangifera indica L.)","Tommy Atkins com porta-enxerto IAC 101 Coquinho","Muda  certificada de Manga cultivar Tommy Atkins com porta-enxerto IAC 101 Coquinho; com enxerto feito, no mínimo a 15cm de altura, medidos a partir do colo da planta;  não apresentar diferença de mais de 1cm entre os diâmetros do enxerto e do porta-enxerto, medidos a 5cm do ponto de enxertia; com comprimento, a partir do colo, entre 50 e 70 cm; ter haste única, ereta e perfeita; isenta de pragas e doenças; a idade não deverá ultrapassar 18 meses, contados a partir da semeadura do porta-enxerto; sistema radicular bem desenvolvido, sem raízes enoveladas, retorcidas ou quebradas; acondicionada em recipiente próprio para mudas com dimensões mínimas de 15cm de diâmetro e 30cm de altura; sem sintomas de estresse hídrico e nutricional; e com identificador unitário.",605604,"unidade",7739,0,{"$f":"H46*I46","v":0}]
[null,"39 - BAHIA","Cacau (Theobroma cacao L.)","PS1319 ou CCN51 ou CC03","Muda  certificada de Cacau; com enxerto feito acima de 15cm de altura, medidos a partir do colo da planta; apresentar 6 folhas totalmente expandidas; com comprimento, a partir do colo do porta-enxerto até a ponta da 6ª folha, entre 30 e 60 cm; deverá ter haste única, ereta e perfeita; isenta de pragas e doenças; a idade não deverá ultrapassar 18 meses, contados a partir da semeadura do porta-enxerto; sistema radicular bem desenvolvido, sem raízes enoveladas, retorcidas ou quebradas; acondicionada em recipiente próprio para mudas com, no mínimo, 15cm de diâmetro e 30cm de altura; sem sintomas de estresse hídrico e nutricional; e com identificador unitário.","Unidade",24035,27778,0,0]
[null,"40 - BAHIA","Cacau (Theobroma cacao L.)","CEPEC2204 com porta-enxerto  CEPEC 2002 ou CEPEC2176 com porta-enxerto  CEPEC 2002","Muda  certificada de Cacau; com enxerto feito acima de 15cm de altura, medidos a partir do colo da planta; apresentar 6 folhas totalmente expandidas; com comprimento, a partir do colo do porta-enxerto até a ponta da 6ª folha, entre 30 e 60 cm; deverá ter haste única, ereta e perfeita; isenta de pragas e doenças; a idade não deverá ultrapassar 18 meses, contados a partir da semeadura do porta-enxerto; sistema radicular bem desenvolvido, sem raízes enoveladas, retorcidas ou quebradas; acondicionada em recipiente próprio para mudas com, no mínimo, 15cm de diâmetro e 30cm de altura; sem sintomas de estresse hídrico e nutricional; e com identificador unitário.","Unidade",24035,27778,0,0]
[null,"41 - BAHIA","Açai  (Euterpe oleracea Mart.)","Pai-d´égua","Muda certificada de Açaí; apresentando 5 folhas completamente expandidas; com altura total entre 50cm e 75cm, medidos da superfície do substrato à ponta da 5ª folha; apresentar diâmetro do caule superior a 14mm, medidos a 1cm da superfície do substrato; a idade não deverá ultrapassar 18 meses, a partir da repicagem da semente pré-germinada; sistema radicular bem desenvolvido, sem raízes enoveladas, retorcidas ou quebradas; acondicionada em recipiente próprio para mudas com, no mínimo, 11cm de diâmetro e 25cm de altura; isenta de pragas e doenças; sem sintomas de estresse hídrico e nutricional; e com identificador unitário.","Unidade",61408,33334,0,0]
[null,"42 - BAHIA","Mamão (Carica papaya L.)","FORMOSA","Muda certificada de Mamão cultivar Formosa; embalada individualmente; apresentando 2 a 4 pares de folhas definitivas; com altura total entre 15cm e 30cm, medidos a partir do colo; a idade não deverá ultrapassar 6 meses, a partir da semeadura; sistema radicular bem desenvolvido, sem raízes enoveladas, retorcidas ou quebradas; acondicionada em recipiente próprio para mudas com, no mínimo, 15cm de diâmetro e 25cm de altura; isenta de pragas e doenças;sem sintomas de estresse hídrico e nutricional; e com identificador unitário.","Unidade",34332,31371,0,0]
[null,"43 - BAHIA","Laranja  (Citrus sinensis (L.) Osbeck)","Pera IAC com porta-enxerto limoeiro ‘Cravo’ (Citrus limonia Osbeck)","Muda certificada de Laranja; com enxerto feito entre 10 e 20cm de altura, medidos a partir do colo do porta-enxerto; o enxerto e o porta-enxerto deverão constituir haste única e ereta, tolerando-se uma pequena curvatura logo acima do ponto de enxertia de, no máximo, 15º, e apresentar diferença menor ou igual a 0,5cm entre seus diâmetros, medidos a 5cm acima e abaixo do ponto de enxertia; tecido amadurecido; ramos íntegros, sem danos físicos; com comprimento, a partir do colo, entre 50 e 60 cm;  diâmetro mínimo de 0,5 cm, 5 cm acima do ponto de enxertia; corte do porta-enxerto cicatrizado; estar isenta de pragas e doenças; a idade não deverá ultrapassar 18 meses, contados a partir da semeadura do porta-enxerto; sistema radicular bem desenvolvido, com raiz principal maior que 20cm, radicelas ocupando todo ou quase todo o volume do substrato, sem raízes enoveladas, retorcidas ou quebradas; acondicionada em recipiente próprio para mudas com dimensões mínimas de 10cm de diâmetro e 30cm de altura; substrato não deverá conter solo; sem sintomas de estresse hídrico e nutricional; e com identificador unitário.","Unidade",5117,72600,0,0]
[null,"TOTAL",{"$nulls":7},{"$f":"SUM(J9:J51)","v":0}]